Cogmind - Beta 15 @@@ ROGUE MODE // 2025.06.25 @ 22:06:43 Player: GiggleBox Result: Destroyed by H-88 Terminator with KE Penetrator Performance ------------- Evolutions (9) 4500 Regions Visited (29) 5800 Robots Destroyed (285) 1425 Value Destroyed (13254) 13254 Prototype IDs (69) 1380 Alien Tech Used (2) 400 Bonus (11238) 11238 TOTAL SCORE: 37997 Bonus ------- Triggered Max Security 1000 High Alert Combat Kills 688 Follower Combat Kills 2272 Entered Garrisons 400 Network Hubs Disabled 200 Aligned with FarCom 300 Met Data Miner 300 Acquired ECA 300 Met Zhirov 300 Met Warlord at Base 500 MAIN.C Attacked Warlord 500 Warlord Defense Kills 228 Met R17 at Cetus 500 Met R17 at Research 2000 Met Sigix 2000 Friendly Fire -250 Cogmind --------- Core Integrity 0/1600 Matter 297/300 Energy 40/100 System Corruption 0% Temperature Cool (0) Movement Core (50) Location -1/Access Parts ------- > --- POWER (2) -------- (None) > --- PROPULSION (9) --- (None) > --- UTILITY (10) ----- (None) > --- WEAPON (4) ------- (None) > --- INVENTORY (5) ---- Advanced Cooling System Sigix Containment Pod Peak State ------------ > --- POWER ------------ Micro Antimatter Reactor Light Quantum Reactor > --- PROPULSION ------- Field Propulsion Array Field Propulsion Array Q-thruster Cooled Impulse Thruster Impulse Thruster Array > --- UTILITY ---------- Superbattery Long-range Terrain Scanner Experimental Terrain Scan Processor Advanced Melee Analysis Suite Experimental Target Analyzer Improved Transmission Jammer Jamming Amplifier Advanced Force Field Experimental System Shield > --- WEAPON ----------- Core Stripper Plasma Lance Enhanced Force Lance > --- INVENTORY -------- Micro Antimatter Reactor Q-thruster Advanced Power Amplifier Enhanced Hardcell Cannon Fusion Bomb Launcher [Rating: 192] Favorites ----------- Power F-cell Engine Engine F-cell Engine Power Core Neutrino Core Reactor Quantum Reactor Propulsion Improved Treads Treads Improved Treads Leg Aluminum Leg Wheel Wheel Hover Unit Improved Antigrav System Flight Unit Field Propulsion Array Utility Advanced Heat Sink Device Advanced Heat Sink Storage High-capacity Storage Unit Processor Improved Corruption Screen Hackware Experimental System Shield Protection Centrium Medium Armor Plating Weapon Quantum Rifle Energy Gun Quantum Rifle Energy Cannon Cooled Phase Cannon Ballistic Gun Heavy Assault Rifle Ballistic Cannon Hardcell Cannon Launcher Thermoblaster Impact Weapon Great Maul Slashing Weapon Power Sword Piercing Weapon Enhanced Force Lance Build | -11 -10 -10 -10 -9 -8 -8 -8 -7 -6 -6 -6 -6 -5 -5 -5 -5 -5 -5 -4 -4 -4 -4 -4 -4 -3 -3 -2 -2 -1 ------- Run | Yrd Mat Min Exi Min Mat Gar Mat Fac Fac Low Low Dat Pro Fac Ext Cet Arc Hub Fac Gar Fac Upp Upp War Pro Res Res Qua Acc Slots Evolved 18 | . . . . . 4 . . 2 2 . . . . 2 . . . . 2 . . . . . . 2 2 . 2 Power 1 | . . . . . . . . . . . . . . 1 . . . . . . . . . . . . . . . Propulsion 7 | . . . . . 2 . . . . . . . . . . . . . . . . . . . . 2 2 . 1 Utility 8 | . . . . . 2 . . 1 2 . . . . . . . . . 2 . . . . . . . . . 1 Weapon 2 | . . . . . . . . 1 . . . . . 1 . . . . . . . . . . . . . . . Parts Attached 276 | 10 12 1 2 . 18 3 18 4 7 2 3 . 8 8 15 10 . 6 17 8 1 5 7 6 2 45 6 10 42 Power 33 | 1 1 . 1 . 2 1 2 . . . 1 . . 3 4 2 . . . 1 . . 1 1 . 6 1 1 4 Engine 11 | 1 1 . 1 . 1 1 2 . . . . . . 2 2 . . . . . . . . . . . . . . Core 6 | . . . . . 1 . . . . . 1 . . 1 2 . . . . 1 . . . . . . . . . Reactor 16 | . . . . . . . . . . . . . . . . 2 . . . . . . 1 1 . 6 1 1 4 Propulsion 69 | 4 5 . . . 1 1 5 2 . . 1 . 2 . . 1 . . . 1 . . . . . 15 1 3 27 Treads 24 | 2 4 . . . . 1 5 1 . . 1 . 2 . . 1 . . . 1 . . . . . 6 . . . Leg 5 | 2 . . . . . . . . . . . . . . . . . . . . . . . . . . . . 3 Wheel 12 | . 1 . . . 1 . . 1 . . . . . . . . . . . . . . . . . . . . 9 Hover 9 | . . . . . . . . . . . . . . . . . . . . . . . . . . 3 . 1 5 Flight 19 | . . . . . . . . . . . . . . . . . . . . . . . . . . 6 1 2 10 Utility 92 | 2 2 1 1 . 5 1 4 2 3 2 1 . 3 4 5 3 . 3 12 2 1 1 2 5 1 12 2 2 10 Device 47 | 1 1 . 1 . 1 1 1 . 1 2 1 . 3 1 3 1 . 3 6 2 1 . . 3 . 5 1 2 6 Storage 10 | 1 1 . . . 1 . 1 . . . . . . 1 1 . . . 1 . . . . 1 . 1 . . 1 Processor 18 | . . . . . 1 . 1 2 1 . . . . . . . . . 4 . . . 1 1 . 4 1 . 2 Hackware 3 | . . . . . . . . . . . . . . . . . . . . . . . . . . 2 . . 1 Protection 14 | . . 1 . . 2 . 1 . 1 . . . . 2 1 2 . . 1 . . 1 1 . 1 . . . . Artifact . | . . . . . . . . . . . . . . . . . . . . . . . . . . . . . . Weapon 82 | 3 4 . . . 10 . 7 . 4 . . . 3 1 6 4 . 3 5 4 . 4 4 . 1 12 2 4 1 Energy Gun 38 | 2 1 . . . 4 . 4 . 4 . . . 2 . 4 2 . 1 4 1 . 3 4 . . 2 . . . Energy Cannon 10 | . . . . . 3 . . . . . . . . . . 1 . 2 1 . . . . . . 1 1 . 1 Ballistic Gun 6 | 1 2 . . . . . 1 . . . . . 1 1 . . . . . . . . . . . . . . . Ballistic Cannon 12 | . . . . . 2 . . . . . . . . . 2 1 . . . 2 . 1 . . 1 2 . 1 . Launcher 4 | . . . . . 1 . 1 . . . . . . . . . . . . . . . . . . 1 1 . . Special Weapon . | . . . . . . . . . . . . . . . . . . . . . . . . . . . . . . Impact Weapon 5 | . 1 . . . . . 1 . . . . . . . . . . . . . . . . . . 2 . 1 . Slashing Weapon 2 | . . . . . . . . . . . . . . . . . . . . 1 . . . . . . . 1 . Piercing Weapon 5 | . . . . . . . . . . . . . . . . . . . . . . . . . . 4 . 1 . Special Melee Weapon . | . . . . . . . . . . . . . . . . . . . . . . . . . . . . . . Unidentified Prototypes 34 | . . . 1 . 1 . 2 . . . . . 6 . 1 3 . 2 4 . . . . 5 . 6 1 2 . Parts Lost 94 | . . . . . . 5 7 . 1 . 2 . 1 . 5 . . 2 2 6 . 3 4 . . 24 . 12 20 Power 9 | . . . . . . . 2 . . . . . . . 1 . . . . 1 . . 2 . . 2 . . 1 Propulsion 38 | . . . . . . 4 3 . 1 . 2 . . . . . . . . 2 . . . . . 10 . 6 10 Utility 35 | . . . . . . 1 2 . . . . . 1 . 2 . . 2 1 2 . 2 2 . . 8 . 5 7 Weapon 12 | . . . . . . . . . . . . . . . 2 . . . 1 1 . 1 . . . 4 . 1 2 Highest Loss Streak 13 | . . . . . . 1 3 . 1 . 2 . 1 . 3 . . 1 1 2 . 2 3 . . 8 . 7 13 To Critical Strikes 2 | . . . . . . . . . . . . . . . 1 . . . . . . . . . . . . 1 . Average Backups 14 | 3 9 15 15 15 14 13 14 14 14 14 13 12 13 14 18 19 19 18 18 15 17 16 17 16 18 12 4 3 2 Power 1 | . . 1 . . . 1 1 1 1 1 1 1 1 1 1 2 2 2 2 1 1 1 1 . 2 1 . . . Propulsion 1 | 1 4 4 4 4 2 1 . . 1 2 . . . 1 1 1 1 1 1 . . . . . . . 1 . . Utility 6 | . 1 5 6 7 5 5 4 5 6 5 5 5 5 6 8 8 8 7 8 9 9 8 9 8 8 4 . . . Weapon 5 | . 2 4 4 4 6 5 7 5 5 5 5 5 5 5 6 7 7 6 6 3 6 5 6 7 7 5 2 2 1 Tool/Special . | . . . . . . . . . . . . . . . . . . . . . . . . . . . . . . Unused Backups 41 | . 5 1 . . 6 . 1 1 6 1 . . 1 1 3 3 . 1 1 2 . 1 . . 2 4 . 1 . Power 5 | . 1 . . . . . . 1 . . . . . 1 1 1 . . . . . . . . . . . . . Propulsion 1 | . . . . . . . . . . . . . . . . . . . . . . . . . . 1 . . . Utility 10 | . . . . . 2 . . . 1 1 . . . . 1 1 . . . . . . . . 1 2 . 1 . Weapon 23 | . 3 . . . 4 . 1 . 5 . . . 1 . 1 1 . 1 1 2 . 1 . . 1 1 . . . Tool/Special 2 | . 1 1 . . . . . . . . . . . . . . . . . . . . . . . . . . . Average Slot Usage (%) 89 | . 100 100 100 100 99 95 99 99 95 100 100 100 94 87 87 88 88 86 88 83 84 88 88 86 83 73 78 72 70 Engine 5 | . 14 14 14 14 8 9 8 7 6 6 2 . . 8 6 5 5 5 5 5 5 5 2 . . . . . . Core 1 | . . . . . . . . . . . 3 6 6 1 4 . . . . 4 5 5 1 . . . . . . Reactor 1 | . . . . . . . . . . . . . . . . 4 5 5 5 . . . 4 7 5 4 8 7 5 Treads 15 | . 17 28 28 28 34 22 27 23 19 20 23 26 20 11 11 11 11 11 10 9 10 10 10 10 10 10 . . . Wheel 2 | . 6 . . . 1 9 7 6 6 6 2 . . . . . . . . . . . . . . . . . 10 Flight 1 | . . . . . . . . . . . . . . . . . . . . . . . . . . 4 20 19 12 Device 16 | . 14 12 . . 8 8 9 7 6 12 13 13 15 12 19 23 23 22 26 25 26 25 19 20 20 12 12 10 10 Storage 7 | . 14 14 14 14 12 10 9 7 6 6 10 13 13 11 7 5 5 5 5 5 5 5 8 7 5 3 4 2 . Processor 12 | . . . . . 8 9 15 16 23 26 22 20 17 11 7 5 5 4 8 10 10 10 12 17 21 16 17 16 15 Protection 3 | . . 1 13 14 5 7 1 5 4 . . . . 3 3 5 5 4 6 4 5 5 5 . . 1 . . . Energy Gun 11 | . 13 . . . 2 . 14 7 15 20 20 20 17 20 19 17 17 18 17 3 . 10 21 21 17 4 . . . Energy Cannon 1 | . . . . . 10 6 . . . . . . . . . . . . . 4 5 4 . . . . . . . Ballistic Gun 2 | . 4 27 28 28 3 . 1 6 1 . . . 2 1 . 2 . . . . . . . . . . . . . Ballistic Cannon 1 | . . . . . 1 5 . . . . . . . . 1 2 . . . 3 5 4 . . 3 4 1 . 1 Impact Weapon 1 | . 10 . . . . 5 2 7 1 . . . . . . . 4 3 2 1 . . . . . 2 . 1 . Peak Build Rating 192 | 7 12 13 19 14 35 35 36 43 53 54 63 62 114 123 126 134 134 132 150 139 133 138 145 155 155 165 171 192 172 Average Rating 93 | 5 10 12 13 14 28 29 31 39 48 53 58 62 81 116 121 131 130 128 141 131 132 134 139 149 151 135 163 167 118 On Entrance 83 | . 7 12 13 14 14 34 28 30 43 53 54 62 62 113 123 123 134 130 128 134 131 133 135 144 155 150 150 163 31 Naked Turns 1 | . . . . . . . . . . . . . . . . . . . . . . . . . . . . . 1 Heaviest Build 121 | 11 32 34 34 32 45 48 45 50 52 50 52 52 65 97 108 111 108 111 120 117 117 117 112 111 118 121 68 58 92 Greatest Support 215 | 40 46 46 46 46 92 92 85 83 48 12 88 88 180 180 180 180 180 180 180 180 155 155 155 155 155 215 61 61 144 Greatest Overweight (x) 4 | 1 3 . . . 1 4 4 4 4 4 3 . . . . 1 . . . 1 . . . . . 4 1 . 4 Average Overweight (x) . | . 1 . . . . . . 3 3 3 1 . . . . . . . . . . . . . . . . . . Largest Inventory Capacity 20 | 8 15 15 15 15 15 15 15 15 15 15 15 15 15 20 20 20 20 20 20 20 20 20 20 20 20 20 5 5 15 Average Capacity 16 | 7 12 15 15 15 15 15 15 15 15 15 15 15 15 17 20 20 20 20 20 20 20 20 20 20 20 14 5 5 6 Most Carried 20 | 6 15 15 15 15 15 15 15 15 15 15 15 12 15 17 20 20 20 20 20 20 19 20 20 20 20 20 5 5 15 Average Carried 15 | 3 9 14 14 15 14 13 14 14 14 14 13 12 13 14 18 19 20 19 19 17 18 17 18 17 19 13 4 4 4 Final Capacity 20 | 8 15 15 15 15 15 15 15 15 15 15 15 15 15 20 20 20 20 20 20 20 20 20 20 20 20 5 5 5 5 Final Carried 20 | 6 15 15 15 15 15 13 15 15 15 15 12 12 14 16 20 20 20 20 20 18 19 20 17 20 20 5 5 5 3 Class Distribution -------------------- 28% | Mutant 23% | Scavenger-Tank 9% | Scavenger-Gunner 7% | Gunner 6% | Tank 5% | Scavenger-Assassin 4% | Commander-Tank Dominant Class ---------------- Mutant | -10/Materials Mutant | -10/Mines Mutant | -10/Exiles Mutant | -9/Mines Mutant | -8/Materials Mutant | -8/Garrison Mutant | -8/Materials Mutant | -7/Factory Gunner | -6/Factory Gunner | -6/Lower Caves Scavenger-Gunner | -6/Lower Caves Scavenger-Gunner | -6/Data Miner Scavenger-Gunner | -5/Proximity Caves Tank | -5/Factory Commander-Tank | -5/Extension Scavenger-Tank | -5/Cetus Scavenger-Tank | -5/Archives Scavenger-Tank | -5/Hub_04(d) Scavenger-Tank | -4/Factory Scavenger-Assassin | -4/Garrison Scavenger-Assassin | -4/Factory Scavenger-Tank | -4/Upper Caves Scavenger-Tank | -4/Upper Caves Scavenger-Tank | -4/Warlord Scavenger-Tank | -3/Proximity Caves Scavenger-Gunner | -3/Research Ninja | -2/Research Ninja | -2/Quarantine Scavenger-Sprinter | -1/Access Resources | -11 -10 -10 -10 -9 -8 -8 -8 -7 -6 -6 -6 -6 -5 -5 -5 -5 -5 -5 -4 -4 -4 -4 -4 -4 -3 -3 -2 -2 -1 ----------- Run | Yrd Mat Min Exi Min Mat Gar Mat Fac Fac Low Low Dat Pro Fac Ext Cet Arc Hub Fac Gar Fac Upp Upp War Pro Res Res Qua Acc Matter Collected 6681 | 282 214 221 . . 427 366 395 77 234 60 90 . 197 145 432 275 10 211 295 522 . 232 70 86 162 1072 89 115 402 Remotely . | . . . . . . . . . . . . . . . . . . . . . . . . . . . . . . Salvage Created 13529 | 121 566 249 . . 620 568 896 77 414 215 746 . 457 294 727 89 91 790 1281 1605 . 708 699 107 601 887 40 284 397 Parts 521 | 4 26 22 . . 38 27 45 2 19 11 19 . 9 20 28 3 . 17 45 62 . 21 24 2 21 30 2 6 18 Haulers Intercepted 8 | . 2 . . . 1 . 1 1 . . . . . . . . . 2 . . . . . . . . . . 1 Recyclers Shooed . | . . . . . . . . . . . . . . . . . . . . . . . . . . . . . . Parts Field Recycled . | . . . . . . . . . . . . . . . . . . . . . . . . . . . . . . Retrieved Matter . | . . . . . . . . . . . . . . . . . . . . . . . . . . . . . . Parts Self-Destructed 118 | . . . . . . . . . . 10 16 . 17 . . . . . . . . 30 24 . 21 . . . . Prevented 10 | . . . . . . . . . . 4 3 . . . . . . . . . . 2 1 . . . . . . Kills | -11 -10 -10 -10 -9 -8 -8 -8 -7 -6 -6 -6 -6 -5 -5 -5 -5 -5 -5 -4 -4 -4 -4 -4 -4 -3 -3 -2 -2 -1 ------- Run | Yrd Mat Min Exi Min Mat Gar Mat Fac Fac Low Low Dat Pro Fac Ext Cet Arc Hub Fac Gar Fac Upp Upp War Pro Res Res Qua Acc Combat Hostiles Destroyed 222 | . 9 13 . . 15 18 16 . 8 4 11 . 7 7 11 1 . 6 21 21 . 10 13 2 11 16 . 2 . Melee 9 | . 4 . . . . . 1 . . . . . . . . . . 1 . 1 . . . . . . . 2 . Guns 126 | . 4 13 . . 3 . 8 . 8 4 11 . 7 7 10 1 . 5 15 4 . 5 11 2 7 1 . . . Cannons 58 | . . . . . 9 12 . . . . . . . . . . . . . 16 . 5 . . 4 12 . . . AOE 16 | . . . . . 3 6 4 . . . . . . . . . . . 1 . . . . . . 2 . . . Classes Destroyed 21 | 2 6 . . . 1 1 4 . . 1 . . 1 . . . . 1 . . . 1 1 1 . 1 . . . Worker 11 | . 2 . . . 1 . 1 . . . . . . 1 . . . 6 . . . . . . . . . . . Builder 5 | . . . . . . . 2 . . . . . . . . . . 1 2 . . . . . . . . . . Tunneler 4 | 1 . 1 . . . . 1 . . . . . . . . . . . 1 . . . . . . . . . . Hauler 8 | . 2 . . . 1 . 1 1 . . . . . . . . . 2 . . . . . . . . . . 1 Recycler 7 | 1 1 . . . . . 2 . . . . . . . . . . . . . . . . . . . . 1 2 Minesweeper 3 | . . . . . . . . . . 3 . . . . . . . . . . . . . . . . . . . Operator 4 | . 1 . . . . . . . . . . . . 1 . . . . . . . . . . . . 1 . 1 Drone 1 | . . . . . . . . . . . . . 1 . . . . . . . . . . . . . . . . Watcher 18 | . 2 . . . 2 . . 1 1 . . . . . 3 1 . 2 3 . . . . . . 2 . . 1 Swarmer 66 | . 3 11 . . 6 3 2 . . 1 1 . . 4 4 . . . 5 9 . 3 6 . 6 2 . . . Grunt 81 | . 6 2 . . 6 9 8 . 3 3 6 . 4 2 4 . . 2 7 6 . 4 3 1 . 3 . 2 . Brawler 8 | . . . . . . . 1 . 1 . . . 1 . . . . . . . . 1 1 . 3 . . . . Duelist 6 | . . . . . . . 1 . . . 3 . . . . . . . . . . 1 . . 1 . . . . Protector 1 | . . . . . . . . . . . . . . . . . . . . . . . . 1 . . . . . Sentry 23 | . . . . . 3 3 3 . 1 . 1 . . . 2 . . 1 2 3 . 1 1 . 1 1 . . . Demolisher 1 | . . . . . . . . . . . . . . . . . . . . . . . . . . 1 . . . Specialist 2 | . . . . . . . . . . . . . . . . . . 2 . . . . . . . . . . . Hunter 9 | . . . . . . . 1 . . . . . . 1 . . . 1 . . . 1 . . . 5 . . . Programmer 22 | . . . . . . 3 . . 3 . . . 1 . . . . . 7 3 . . 1 . . 4 . . . Behemoth 1 | . . . . . . . . . . . . . . . . . . . . . . . 1 . . . . . . Cetus Guard 1 | . . . . . . . . . . . . . . . . 1 . . . . . . . . . . . . . Decomposer 1 | . . . . . . . . . . . 1 . . . . . . . . . . . . . . . . . . Samaritan 2 | . . . . . . . . . . . . . . . . . . . . . . 2 . . . . . . . Thug 2 | . . . . . . . . . . . . . . . 2 . . . . . . . . . . . . . . Guerrilla 1 | . . . . . . . . . . . . . . . 1 . . . . . . . . . . . . . . Best Kill Streak 9 | 2 5 3 . . 4 3 8 1 4 2 7 . 3 4 3 1 . 9 3 4 . 7 3 2 5 3 1 1 3 Combat Bots Only 7 | . 5 3 . . 4 3 4 . 4 2 7 . 3 3 3 1 . 2 3 4 . 7 3 2 5 3 . 1 . Max Kills in Single Turn 3 | 1 1 2 . . 3 2 2 1 1 1 2 . 1 2 2 1 . 1 2 1 . 2 2 1 2 2 1 1 1 Gunslinging 1 | . . . . . . . . . . . 1 . . 1 1 . . . . . . . . . 1 . . . . Exploded 3 | . . . . . 3 2 2 . . . . . . . . . . . 1 . . . . . . 2 . . . Melee 1 | . 1 . . . . . 1 . . . . . . . . . . 1 . 1 . . . . . . . 1 . Uniques/NPCs Destroyed . | . . . . . . . . . . . . . . . . . . . . . . . . . . . . . . Combat | -11 -10 -10 -10 -9 -8 -8 -8 -7 -6 -6 -6 -6 -5 -5 -5 -5 -5 -5 -4 -4 -4 -4 -4 -4 -3 -3 -2 -2 -1 -------- Run | Yrd Mat Min Exi Min Mat Gar Mat Fac Fac Low Low Dat Pro Fac Ext Cet Arc Hub Fac Gar Fac Upp Upp War Pro Res Res Qua Acc Hostile Shots Fired 1465 | . 22 38 . . 54 94 75 . 44 15 42 . 20 24 44 14 . 34 98 97 . 41 63 16 42 277 5 142 164 Missed 453 | . 5 14 . . 18 25 19 . 13 3 9 . 11 9 15 5 . 8 22 20 . 8 9 3 7 103 5 54 68 Hits 1012 | . 17 24 . . 36 69 56 . 31 12 33 . 9 15 29 9 . 26 76 77 . 33 54 13 35 174 . 88 96 Melee 46 | . . . . . . . . . . . 3 . . . . . . . . . . . . . 3 14 . 5 21 Projectile 966 | . 17 24 . . 36 69 56 . 31 12 30 . 9 15 29 9 . 26 76 77 . 33 54 13 32 160 . 83 75 AOE 5 | . . . . . . . . . . . . . . . . . . . 1 . . . . . . 4 . . . Critical Strikes 71 | . . . . . 2 7 4 . . . 1 . 1 1 2 1 . 3 3 6 . 3 1 1 . 12 . 10 13 Part Disruptions 3 | . . . . . . . . . . . . . . . . . . . 1 . . . . . . . . 1 1 Damage Taken 24241 | . 186 197 . . 520 1063 972 . 404 212 703 . 191 400 896 266 598 603 1760 1768 178 607 1190 189 875 5182 . 2639 2642 Core 5181 | . 56 33 . . 66 51 80 . 52 18 18 . 19 192 163 . 151 141 101 148 32 34 132 17 110 1049 . 913 1605 Absorbed by Shields 241 | . . . . . . 65 . . . . . . . . . . . . . . . . . . . . . 169 7 Reduced by Siege Mode 442 | . . . . . . . . . . . . . . . . 8 . 7 76 56 . 76 54 . 74 91 . . . Ignored by Resistances 344 | . . . . . . . . . . . . . . . . . . . 44 18 . 64 86 70 7 55 . . . Regen/Repaired (Parts) 702 | . . . . . . . . . . . . . . . . . . . . . . . . 474 . . . 228 . Core Remaining (%) 61 | 100 . . . 64 . . 64 100 . . . . 87 . . . . 35 . . . . . . 50 19 . 37 . Volleys Fired 660 | 5 21 24 . . 53 60 40 . 17 14 17 . 20 10 37 27 . 17 47 84 . 28 32 6 22 70 1 8 . Largest 4 | 2 2 2 . . 2 2 2 . 3 3 3 . 3 4 4 3 . 4 4 3 . 4 4 4 4 4 1 1 . Hottest 464 | 80 80 46 . . 150 150 160 . 240 245 240 . 240 353 353 256 . 337 351 185 . 336 376 376 376 464 52 58 . Shots Fired 1524 | 10 28 47 . . 89 79 75 . 43 42 51 . 60 38 96 46 . 56 158 132 . 97 118 24 74 152 1 8 . Gun 1064 | 10 28 47 . . 18 . 72 . 43 42 51 . 60 38 94 32 . 54 154 15 . 55 118 24 60 49 . . . Cannon 432 | . . . . . 70 66 . . . . . . . . 2 14 . 2 2 117 . 42 . . 14 95 . 8 . Launcher 28 | . . . . . 1 13 3 . . . . . . . . . . . 2 . . . . . . 8 1 . . Special . | . . . . . . . . . . . . . . . . . . . . . . . . . . . . . . Kinetic 334 | . 4 47 . . 23 39 9 . 10 . . . 8 2 10 19 . . . 37 . 21 . . 14 83 . 8 . Thermal 1156 | 10 24 . . . 54 27 63 . 33 42 51 . 52 36 86 26 . 54 156 95 . 76 118 24 60 69 . . . Explosive 20 | . . . . . 1 13 3 . . . . . . . . . . . 2 . . . . . . . 1 . . Electromagnetic 14 | . . . . . 11 . . . . . . . . . . 1 . 2 . . . . . . . . . . . Robot Hit Streak 45 | 2 7 7 . . 11 10 13 . 14 14 45 . 11 7 14 6 . 16 20 9 . 14 14 9 14 10 . . . Robot Miss Streak 8 | 4 2 5 . . 3 4 4 . 3 5 2 . 5 5 3 8 . 1 5 5 . 5 4 2 8 8 . . . Penetration Max . | . . . . . . . . . . . . . . . . . . . . . . . . . . . . . . Secondary Targets 24 | . . 3 . . . . 1 . 3 . 2 . 2 1 4 . . . 2 . . 1 1 1 3 . . . . Max Gunslinging Chain 2 | . . 1 . . . . 1 . 1 . 1 . 1 1 2 . . . 1 . . 1 1 1 1 . . . . Autonomous 9 | . . . . . . . . . . . . . . . . . . . . 9 . . . . . . . . . Shots Hit Robots 1019 | 3 43 22 . . 53 46 52 2 35 32 40 . 45 22 59 25 3 52 108 80 . 65 77 15 40 84 2 8 6 Core Hits 511 | 3 14 14 . . 28 32 38 1 32 20 39 . 26 13 34 8 . 17 44 31 . 24 26 5 19 36 1 2 4 Critical Kills 8 | . 2 . . . . . 1 . . . . . 1 . 1 . . 1 1 1 . . . . . . . . . Critical Parts Destroyed 13 | . 2 . . . . 1 1 . . . . . . . . . 1 3 3 2 . . . . . . . . . Critical Strikes 71 | . 4 . . . 1 2 5 . . . . . 1 1 7 5 1 6 13 6 . 1 2 . . 9 2 3 2 Burn 26 | . . . . . . . 3 . . . . . . 1 6 3 . 2 9 . . . 2 . . . . . . Destroy 4 | . . . . . . . . . . . . . 1 . 1 . . . 2 . . . . . . . . . . Blast 16 | . . . . . 1 1 . . . . . . . . . 2 . . . 3 . 1 . . . 8 . . . Smash 17 | . 4 . . . . 1 2 . . . . . . . . . 1 4 2 3 . . . . . . . . . Sever 2 | . . . . . . . . . . . . . . . . . . . . . . . . . . . . 2 . Impale 6 | . . . . . . . . . . . . . . . . . . . . . . . . . . 1 2 1 2 Melee Attacks 289 | . 39 2 . . . 34 24 6 2 . . . . 4 2 . 3 18 6 53 . 3 . . . 26 5 41 21 Kinetic 9 | . . . . . . . . . . . . . . . . . . . . . . . . . . . . 9 . Impact 181 | . 39 2 . . . 34 24 6 2 . . . . 4 2 . 3 18 6 26 . . . . . 15 . . . Slashing 44 | . . . . . . . . . . . . . . . . . . . . 27 . 3 . . . . . 14 . Piercing 55 | . . . . . . . . . . . . . . . . . . . . . . . . . . 11 5 18 21 Sneak Attacks 26 | . 8 . . . . . . 2 . . . . . . . . . 8 1 . . 3 . . . . . 1 3 Combat Hostiles 2 | . . . . . . . . . . . . . . . . . . 1 1 . . . . . . . . . . Follow-up Attacks 2 | . . . . . . . . . . . . . . . . . . . . . . . . . . . 2 . . Damage Inflicted 35107 | 31 1102 354 . . 1537 1869 2004 150 935 827 1126 . 1154 634 1732 767 317 2033 3299 4535 . 2125 2150 419 1240 3393 91 718 565 Guns 17832 | 31 235 339 . . 161 . 938 . 935 827 1126 . 1154 626 1644 483 . 935 2820 356 . 901 2150 419 940 812 . . . Cannons 8440 | . . . . . 1053 883 . . . . . . . . 21 284 . . 74 2962 . 981 . . 300 1882 . . . Explosions 2598 | . . . . . 316 766 864 . . . . . . . . . . 41 193 . . . . . . 418 . . . Melee 6169 | . 867 . . . . 220 202 150 . . . . . . 35 . 317 1057 212 1217 . 243 . . . 281 91 717 560 Ramming 68 | . . 15 . . 7 . . . . . . . . 8 32 . . . . . . . . . . . . 1 5 Kinetic 6056 | . 33 339 . . 302 502 109 . 145 . . . 53 . 97 253 . . . 1711 . 444 . . 300 1559 . 209 . Thermal 21327 | 31 202 . . . 893 381 1363 . 790 827 1126 . 1101 626 1568 483 . 935 2894 1607 . 1438 2150 419 940 1553 . . . Explosive 1463 | . . . . . 174 766 330 . . . . . . . . . . . 193 . . . . . . . . . . Electromagnetic 233 | . . . . . 161 . . . . . . . . . . 31 . 41 . . . . . . . . . . . Impact 4412 | . 867 . . . . 220 202 150 . . . . . . 35 . 317 1057 212 1172 . . . . . 180 . . . Slashing 640 | . . . . . . . . . . . . . . . . . . . . 45 . 243 . . . . . 352 . Piercing 908 | . . . . . . . . . . . . . . . . . . . . . . . . . . 101 91 156 560 Highest Corruption 16 | . 1 1 1 1 . 1 1 . . . . . . . 11 1 1 7 . . . . . . . 7 . 16 . Average Corruption 1 | . 1 1 1 1 . 1 1 . . . . . . . 2 1 1 3 . . . . . . . 7 . 7 . Corruption Purged 10 | . . . . . . . . . . . . . . . 10 . . . . . . . . . . . . . . Corruption Blocked 30 | . . . . . . . . . 2 . . . . . . . . . 5 6 . . 1 . . 10 . . 6 Effects 83 | . 8 8 3 1 . 2 10 . . . . . . . 12 6 . 12 . . . . . . . 11 . 10 . Message Errors 15 | . 2 . . 1 . 1 1 . . . . . . . . 2 . 4 . . . . . . . 4 . . . Matter Fused 19 | . 3 2 . . . . 4 . . . . . . . 2 1 . 3 . . . . . . . 3 . 1 . Heat Flow Errors 13 | . 1 1 . . . 1 2 . . . . . . . 4 1 . 1 . . . . . . . 1 . 1 . Energy Discharges 11 | . 2 1 1 . . . 1 . . . . . . . 2 1 . . . . . . . . . 1 . 2 . Parts Fused 1 | . . . . . . . . . . . . . . . . . . . . . . . . . . . . 1 . Data Loss (minor) 8 | . . 1 2 . . . . . . . . . . . 2 . . 3 . . . . . . . . . . . Data Loss (major) 6 | . . 1 . . . . 2 . . . . . . . . . . . . . . . . . . 2 . 1 . Misfires 3 | . . . . . . . . . . . . . . . 2 1 . . . . . . . . . . . . . Alerts 3 | . . 1 . . . . . . . . . . . . . . . 1 . . . . . . . . . 1 . Misdirections 3 | . . . . . . . . . . . . . . . . . . . . . . . . . . . . 3 . Weapon Failures 1 | . . 1 . . . . . . . . . . . . . . . . . . . . . . . . . . . Overload Shots 1 | . . . . . . . . . . . . . . . . 1 . . . . . . . . . . . . . Overflow Damage 2533 | . 176 . . . 12 128 166 20 . . . . . . . 1 251 453 107 526 . 164 . . . 45 66 186 232 Projectiles 307 | . . . . . 5 13 . . . . . . . . . 1 . 19 7 213 . 32 . . . 17 . . . Explosions 154 | . . . . . 7 13 127 . . . . . . . . . . . 7 . . . . . . . . . . Melee 2072 | . 176 . . . . 102 39 20 . . . . . . . . 251 434 93 313 . 132 . . . 28 66 186 232 Knockbacks 37 | . 5 . . . 2 6 . . . . . . . . . . 3 2 1 6 . 2 . . 1 9 . . . Impact 14 | . 5 . . . . 2 . . . . . . . . . . 3 2 1 1 . . . . . . . . . Kinetic 22 | . . . . . 2 4 . . . . . . . . . . . . . 5 . 2 . . 1 8 . . . Secondary 1 | . . . . . . . . . . . . . . . . . . . . . . . . . . 1 . . . Self-Inflicted Damage 257 | . . . . . . . 117 . . . . . . . . . . 101 37 . . . . . . . . . 2 Shots 6 | . . . . . . . 3 . . . . . . . . . . 1 2 . . . . . . . . . . Rammed 12 | . . . . . 2 . . . . . . . . 1 6 . . . . . . . . . . . . 1 2 Targets Rammed 13 | . . 1 . . 2 . . . . . . . . 1 6 . . . . . . . . . . . . 1 2 Kicked . | . . . . . . . . . . . . . . . . . . . . . . . . . . . . . . Crushed 1 | . . 1 . . . . . . . . . . . . . . . . . . . . . . . . . . . Highest Temperature 758 | 54 235 108 . . 75 141 262 . 222 228 299 . 147 758 331 225 . 393 241 76 . 198 190 198 336 368 14 133 . Average Temperature 93 | 26 50 52 . . 28 42 58 . 91 93 83 . 43 249 122 79 . 134 107 23 . 101 119 125 127 83 1 34 . Received Heat Transfer 3183 | . 84 6 . . 261 386 405 . 138 63 189 . 78 . 99 . . 99 231 262 . 109 138 115 9 417 . 66 28 Effects 21 | . . . . . . . . . . . . . . 17 1 . . 2 . . . . . . 1 . . . . Shutdowns 4 | . . . . . . . . . . . . . . 4 . . . . . . . . . . . . . . . Energy Bleed 3 | . . . . . . . . . . . . . . 2 1 . . . . . . . . . . . . . . Interference 3 | . . . . . . . . . . . . . . 2 . . . . . . . . . . 1 . . . . Matter Decay 3 | . . . . . . . . . . . . . . 2 . . . 1 . . . . . . . . . . . Short Circuit 1 | . . . . . . . . . . . . . . . . . . 1 . . . . . . . . . . . Damage (minor) 3 | . . . . . . . . . . . . . . 3 . . . . . . . . . . . . . . . Damage (major) 3 | . . . . . . . . . . . . . . 3 . . . . . . . . . . . . . . . Damage (core) 1 | . . . . . . . . . . . . . . 1 . . . . . . . . . . . . . . . Siege Activations 32 | . . . . . . . . . . . . . 2 . . 1 . 1 3 5 . 5 5 . 3 7 . . . Total Turns 553 | . . . . . . . . . . . . . 9 . . 20 . 17 146 63 . 82 80 . 47 89 . . . Longest Duration 108 | . . . . . . . . . . . . . 5 . . 20 . 17 108 27 . 28 31 . 19 28 . . . Martial Activations . | . . . . . . . . . . . . . . . . . . . . . . . . . . . . . . Shielding Activations . | . . . . . . . . . . . . . . . . . . . . . . . . . . . . . . Robots Disrupted . | . . . . . . . . . . . . . . . . . . . . . . . . . . . . . . Combat Hostiles . | . . . . . . . . . . . . . . . . . . . . . . . . . . . . . . Robots Corrupted 23 | . 4 . . . . 2 2 1 . . . . . . . . 3 4 3 4 . . . . . . . . . Combat Hostiles 6 | . 1 . . . . . 2 . . . . . . . . . . . 3 . . . . . . . . . . Parts Fried 34 | . 5 . . . . 4 2 2 . . 2 . . . . . 5 4 5 5 . . . . . . . . . Impact Corruptions 51 | . 10 . . . . 4 2 1 . . . . . . . . 10 13 3 7 . . . . . 1 . . . Robots Melted 8 | . . . . . . . 1 . . . . . . . 1 . . . 3 . . . 2 . . 1 . . . Combat Hostiles 7 | . . . . . . . 1 . . . . . . . 1 . . . 2 . . . 2 . . 1 . . . Parts Melted 89 | . . . . . 2 . 3 . 6 1 2 . 7 2 13 . . 10 15 2 . 4 11 3 5 3 . . . Heat Transferred 33501 | 75 483 . . . 1334 555 2265 . 1650 1600 2375 . 1993 1105 2875 851 . 1554 4551 1583 . 1813 3071 443 1221 2104 . . . Parts Sabotaged 2 | . . . . . . . . . . . . . . . . . . . . . . . . . . . . 2 . Parts Stolen . | . . . . . . . . . . . . . . . . . . . . . . . . . . . . . . Parts Stripped . | . . . . . . . . . . . . . . . . . . . . . . . . . . . . . . Power Chain Reactions 2 | . . . . . 2 . . . . . . . . . . . . . . . . . . . . . . . . Alert | -11 -10 -10 -10 -9 -8 -8 -8 -7 -6 -6 -6 -6 -5 -5 -5 -5 -5 -5 -4 -4 -4 -4 -4 -4 -3 -3 -2 -2 -1 ------- Run | Yrd Mat Min Exi Min Mat Gar Mat Fac Fac Low Low Dat Pro Fac Ext Cet Arc Hub Fac Gar Fac Upp Upp War Pro Res Res Qua Acc Maximum Alert Level 5 | . . . . . . 3 2 . . . . . . . 2 1 . 1 1 5 3 . . . . 1 1 5 4 Low Security (%) 65 | 100 100 100 . 100 100 39 . 100 100 . . . . 100 54 70 100 94 94 11 . . . . . 75 94 . . Level 1 14 | . . . . . . 18 47 . . . . . . . 35 29 . 5 5 20 . . . . . 24 5 . . Level 2 9 | . . . . . . 41 52 . . . . . . . 9 . . . . 26 . . . . . . . . . Level 3 4 | . . . . . . . . . . . . . . . . . . . . 4 100 . . . . . . . 96 Level 4 2 | . . . . . . . . . . . . . . . . . . . . 19 . . . . . . . . 3 Level 5 1 | . . . . . . . . . . . . . . . . . . . . 17 . . . . . . . . . High Security . | . . . . . . . . . . . . . . . . . . . . . . . . . . . . . . Max Security 2 | . . . . . . . . . . . . . . . . . . . . . . . . . . . . 99 . Peak Influence 2041 | 5 100 120 . . 122 756 478 181 70 . . . . 71 447 248 59 393 239 2041 1076 . . . . 295 203 1846 1100 Initial 1100 | . . . . . . 30 368 181 16 . . . . 7 22 236 38 7 191 161 1071 . . . . . 144 110 1100 Average 273 | . 15 36 . . 50 325 395 114 14 . . . . 14 169 176 40 71 108 882 1057 . . . . 127 175 1716 993 Influence Increases 11010 | 10 326 353 . . 476 776 593 33 252 140 273 . 361 194 949 330 33 593 656 2000 15 402 330 25 230 995 92 336 237 Destroy 0b10 Robot/C 5420 | . 180 260 . . 300 360 320 . 160 80 220 . 260 140 480 160 . 120 420 760 . 320 260 20 220 340 . 40 . Destroy 0b10 Robot/NC 395 | 10 40 5 . . 20 15 35 10 5 15 10 . 15 10 15 10 15 55 30 30 . . . 5 . 10 5 5 25 Destroy Leader 738 | . 38 50 . . 76 10 92 4 52 . 10 . 40 10 36 . . 36 96 30 . 20 40 . 10 84 . . 4 Allied During Kill 883 | . . 6 . . . . . . . . 3 . 31 . 267 86 3 . . 437 . 47 . . . 3 . . . Trap Triggered on 0b10 20 | . . . . . . 20 . . . . . . . . . . . . . . . . . . . . . . . Successful Hack 186 | . 4 . . . 3 . 9 . 33 . . . . 10 5 14 . 17 . . . . . . . 51 24 . 16 Disable Machine 555 | . 30 . . . . 45 30 . . . . . . . 45 30 15 135 30 60 15 . . . . 30 . 90 . Anti-Garrison Action 650 | . . . . . . 200 . . . . . . . . . . . . . 450 . . . . . . . . . Destroy Structure 1008 | . 4 2 . . 32 66 47 4 2 . . . . 24 86 30 . 200 50 218 . . . . . 102 63 51 27 Partial Spotted 90 | . . . . . . . . 15 . . . . . . . . . 30 . . . . . . . 15 . . 30 Lose Combat Pursuer 1065 | . 30 30 . . 45 60 60 . . 45 30 . 15 . 15 . . . 30 15 . 15 30 . . 360 . 150 135 Influence Decreases 11636 | 10 326 315 38 . 429 67 950 398 261 124 314 . 349 159 573 657 108 222 818 189 1020 872 572 348 231 737 154 206 1189 Entered New Map 3971 | . . . 38 . . 17 388 218 18 10 9 . . 5 25 187 58 14 201 69 970 384 108 324 1 . 114 86 727 Time Decay 6283 | 10 326 275 . . 429 . 482 180 233 114 285 . 309 154 448 310 50 188 597 . 50 398 404 24 230 485 40 . 262 Lost Part 912 | . . . . . . 50 70 . 10 . 20 . . . 40 . . 20 20 60 . 30 40 . . 232 . 120 200 Lost Ally 470 | . . 40 . . . . 10 . . . . . 40 . 60 160 . . . 60 . 60 20 . . 20 . . . Squads Dispatched 56 | . 1 . . . 1 . 8 1 3 . 1 . . 1 1 . . 1 9 . . . . . . 5 . 20 4 Investigation 7 | . . . . . . . 3 . . . . . . . . . . . 2 . . . . . . 2 . . . Extermination 13 | . . . . . . . . 1 3 . . . . 1 . . . . 5 . . . . . . . . . 3 Reinforcement 11 | . 1 . . . 1 . 1 . . . . . . . 1 . . 1 2 . . . . . . 3 . . 1 Assault 22 | . . . . . . . 1 . . . 1 . . . . . . . . . . . . . . . . 20 . Garrison 3 | . . . . . . . 3 . . . . . . . . . . . . . . . . . . . . . . Intercept . | . . . . . . . . . . . . . . . . . . . . . . . . . . . . . . Searches Triggered . | . . . . . . . . . . . . . . . . . . . . . . . . . . . . . . Construction Impeded . | . . . . . . . . . . . . . . . . . . . . . . . . . . . . . . Haulers Reinforced 1 | . . . . . . . . . . . . . . . . . . . . . . . . . . 1 . . . Active Scanning Responses . | . . . . . . . . . . . . . . . . . . . . . . . . . . . . . . Cargo Convoy Interrupts . | . . . . . . . . . . . . . . . . . . . . . . . . . . . . . . Stealth | -11 -10 -10 -10 -9 -8 -8 -8 -7 -6 -6 -6 -6 -5 -5 -5 -5 -5 -5 -4 -4 -4 -4 -4 -4 -3 -3 -2 -2 -1 --------- Run | Yrd Mat Min Exi Min Mat Gar Mat Fac Fac Low Low Dat Pro Fac Ext Cet Arc Hub Fac Gar Fac Upp Upp War Pro Res Res Qua Acc Distress Signals 23 | . 3 . . . 3 . 3 . . . . . . . 1 . 1 . . . . . . . . 9 1 1 1 Communications Jammed 219 | . . . . . . . . . . . . . . 8 13 153 . 11 11 . . . . . . 6 6 11 . Distress Signals 218 | . . . . . . . . . . . . . . 8 13 153 . 11 10 . . . . . . 6 6 11 . Times Spotted 460 | . 17 14 . . 26 19 28 . 8 8 13 . 15 9 23 10 . 9 34 34 1 17 13 10 11 67 4 45 25 Peak Tracking Total 27 | . 3 4 . . 5 4 7 . 4 4 7 . 4 4 4 5 . 2 3 4 1 6 4 9 5 10 4 27 12 Tactical Retreats 42 | . 1 2 . . 2 2 3 . . 1 1 . 1 . 1 . . . 1 1 . 1 1 . . 13 . 5 6 Traps | -11 -10 -10 -10 -9 -8 -8 -8 -7 -6 -6 -6 -6 -5 -5 -5 -5 -5 -5 -4 -4 -4 -4 -4 -4 -3 -3 -2 -2 -1 ------- Run | Yrd Mat Min Exi Min Mat Gar Mat Fac Fac Low Low Dat Pro Fac Ext Cet Arc Hub Fac Gar Fac Upp Upp War Pro Res Res Qua Acc Traps Triggered 21 | . 1 . . . . 4 2 . . . . . . . . . . 2 6 1 . . . . . 4 . . 1 Indirectly . | . . . . . . . . . . . . . . . . . . . . . . . . . . . . . . Trap Hack Attempts . | . . . . . . . . . . . . . . . . . . . . . . . . . . . . . . Triggered . | . . . . . . . . . . . . . . . . . . . . . . . . . . . . . . Disarmed . | . . . . . . . . . . . . . . . . . . . . . . . . . . . . . . Reprogrammed . | . . . . . . . . . . . . . . . . . . . . . . . . . . . . . . Reused 6 | . . . . . . 2 . . . 2 1 . . . . . . . . . . . . 1 . . . . . Traps Extracted . | . . . . . . . . . . . . . . . . . . . . . . . . . . . . . . Installed 15 | . . . . . . 2 . . . 7 1 . 3 . . . . . . . . . . 2 . . . . . Triggered 6 | . . . . . . 2 . . . 2 1 . . . . . . . . . . . . 1 . . . . . Most Traps Carried 6 | . . . . . . 2 . . . 6 6 5 5 2 2 2 2 2 2 2 2 2 2 2 . . . . . Time Bombs Activated 1 | . . . . . . . . . . . . . . . . . . . . . . . . . . 1 . . . Exploded 1 | . . . . . . . . . . . . . . . . . . . . . . . . . . 1 . . . Machines | -11 -10 -10 -10 -9 -8 -8 -8 -7 -6 -6 -6 -6 -5 -5 -5 -5 -5 -5 -4 -4 -4 -4 -4 -4 -3 -3 -2 -2 -1 ---------- Run | Yrd Mat Min Exi Min Mat Gar Mat Fac Fac Low Low Dat Pro Fac Ext Cet Arc Hub Fac Gar Fac Upp Upp War Pro Res Res Qua Acc Machines Disabled 47 | . 2 . . . . 5 2 . . . . . . . 3 2 1 9 2 9 1 2 . . . 2 . 7 . Max in Single Turn 7 | . 1 . . . . 1 2 . . . . . . . . 1 1 7 1 1 . 1 . . . 1 . 1 . Garrison Relay 7 | . . . . . . 2 . . . . . . . . . . . . . 5 . . . . . . . . . Network Hub 1 | . . . . . . . . . . . . . . . . . . 1 . . . . . . . . . . . Energy Cycler 2 | . . . . . . . . . . . . . . . 2 . . . . . . . . . . . . . . Machines Repaired . | . . . . . . . . . . . . . . . . . . . . . . . . . . . . . . Machines Dismantled . | . . . . . . . . . . . . . . . . . . . . . . . . . . . . . . Machines Sabotaged . | . . . . . . . . . . . . . . . . . . . . . . . . . . . . . . Overloaded Fab Kills . | . . . . . . . . . . . . . . . . . . . . . . . . . . . . . . Hacking | -11 -10 -10 -10 -9 -8 -8 -8 -7 -6 -6 -6 -6 -5 -5 -5 -5 -5 -5 -4 -4 -4 -4 -4 -4 -3 -3 -2 -2 -1 --------- Run | Yrd Mat Min Exi Min Mat Gar Mat Fac Fac Low Low Dat Pro Fac Ext Cet Arc Hub Fac Gar Fac Upp Upp War Pro Res Res Qua Acc Machines Accessed 64 | . 6 1 2 . 3 . 6 . 4 . . 4 . 2 4 3 . 3 6 1 1 1 1 5 . 3 3 . 5 Terminals 44 | . 6 . . . 2 . 6 . 3 . . . . 2 4 3 . 3 4 1 . . . . . 2 3 . 5 Fabricators 4 | . . . . . . . . . 1 . . . . . . . . . 1 . 1 . . . . 1 . . . Repair Stations . | . . . . . . . . . . . . . . . . . . . . . . . . . . . . . . Recycling Units . | . . . . . . . . . . . . . . . . . . . . . . . . . . . . . . Scanalyzers . | . . . . . . . . . . . . . . . . . . . . . . . . . . . . . . Garrison Access 2 | . . . . . 1 . . . . . . . . . . . . . 1 . . . . . . . . . . Total Hacks 179 | . 11 1 8 . 8 . 14 . 10 . . 31 . 6 6 7 . 8 17 1 3 1 1 5 . 6 7 . 28 Successful 85 | . 2 1 8 . 3 . 5 . 4 . . 31 . 3 3 3 . 4 3 1 . 1 1 5 . 2 1 . 4 Failed 94 | . 9 . . . 5 . 9 . 6 . . . . 3 3 4 . 4 14 . 3 . . . . 4 6 . 24 Catastrophic 27 | . 4 . . . . . 3 . 1 . . . . . 2 1 . 1 3 . 1 . . . . . 1 . 10 Database Lockouts . | . . . . . . . . . . . . . . . . . . . . . . . . . . . . . . Manual 64 | . 2 . 1 . 6 . 9 . 9 . . . . 5 3 . . 5 9 . . . . 1 . 4 2 . 8 Terminals 121 | . 11 . . . 7 . 14 . 9 . . . . 6 6 7 . 8 12 1 . . . . . 5 7 . 28 Fabricators 6 | . . . . . . . . . 1 . . . . . . . . . 1 . 3 . . . . 1 . . . Repair Stations . | . . . . . . . . . . . . . . . . . . . . . . . . . . . . . . Recycling Units . | . . . . . . . . . . . . . . . . . . . . . . . . . . . . . . Scanalyzers . | . . . . . . . . . . . . . . . . . . . . . . . . . . . . . . Garrison Access 5 | . . . . . 1 . . . . . . . . . . . . . 4 . . . . . . . . . . Terminal Hacks 68 | . 2 1 8 . 1 . 2 . 1 . . 31 . 1 3 3 . 2 . 1 . 1 1 5 . . 1 . 4 Record 30 | . . . 7 . . . . . . . . 11 . . 1 3 . . . . . . . 5 . . . . 3 Part Schematic 11 | . . . . . . . . . . . . 11 . . . . . . . . . . . . . . . . . Robot Schematic 6 | . . . . . . . . . . . . 6 . . . . . . . . . . . . . . . . . Prototype ID Bank 4 | . . . . . . . . . . . . 3 . . . . . . . . . . . . . . 1 . . Open Door 3 | . . 1 . . . . . . . . . . . . . . . . . . . 1 1 . . . . . . Branch Access Points 4 | . . . . . . . 1 . 1 . . . . 1 . . . . . . . . . . . . . . 1 Emergency Access Points 1 | . . . . . . . . . . . . . . . . . . . . 1 . . . . . . . . . Locate Traps 6 | . 2 . . . 1 . . . . . . . . . 1 . . 2 . . . . . . . . . . . Zone Layout 2 | . . . . . . . 1 . . . . . . . 1 . . . . . . . . . . . . . . Proto ID Catalog 1 | . . . 1 . . . . . . . . . . . . . . . . . . . . . . . . . . Fabricator Hacks 2 | . . . . . . . . . 1 . . . . . . . . . . . . . . . . 1 . . . Network Status 1 | . . . . . . . . . 1 . . . . . . . . . . . . . . . . . . . . Build 1 | . . . . . . . . . . . . . . . . . . . . . . . . . . 1 . . . Repair Station Hacks . | . . . . . . . . . . . . . . . . . . . . . . . . . . . . . . Recycling Unit Hacks . | . . . . . . . . . . . . . . . . . . . . . . . . . . . . . . Scanalyzer . | . . . . . . . . . . . . . . . . . . . . . . . . . . . . . . Garrison Access Hacks 2 | . . . . . 1 . . . . . . . . . . . . . 1 . . . . . . . . . . Unlock Access 2 | . . . . . 1 . . . . . . . . . . . . . 1 . . . . . . . . . . Unauthorized Hacks 13 | . . . . . 1 . 3 . 2 . . . . 2 . . . 2 2 . . . . . . 1 . . . Terminals 13 | . . . . . 1 . 3 . 2 . . . . 2 . . . 2 2 . . . . . . 1 . . . Assimilate 1 | . . . . . . . 1 . . . . . . . . . . . . . . . . . . . . . . Botnet 11 | . . . . . 1 . 2 . 2 . . . . 2 . . . 2 1 . . . . . . 1 . . . Operators 1 | . . . . . . . . . . . . . . . . . . . 1 . . . . . . . . . . Fabricators . | . . . . . . . . . . . . . . . . . . . . . . . . . . . . . . Repair Stations . | . . . . . . . . . . . . . . . . . . . . . . . . . . . . . . Recycling Units . | . . . . . . . . . . . . . . . . . . . . . . . . . . . . . . Scanalyzers . | . . . . . . . . . . . . . . . . . . . . . . . . . . . . . . Garrison Access . | . . . . . . . . . . . . . . . . . . . . . . . . . . . . . . Data Cores Recovered 3 | . . . . . . . . . . . . . . 1 . . . . . . . . . . . . 1 . 1 Used 2 | . . . . . . . . . . . . . . . . . . . . . . . . . . . 1 . 1 Hacking Detections 46 | . 6 . . . 2 . 6 . 4 . . . . 2 4 3 . 3 6 1 1 . . . . 1 2 . 5 Full Trace Events 6 | . 1 . . . . . 3 . . . . . . . . . . . 2 . . . . . . . . . . Feedback Events . | . . . . . . . . . . . . . . . . . . . . . . . . . . . . . . Feedback Blocked . | . . . . . . . . . . . . . . . . . . . . . . . . . . . . . . Robot Schematics Acquired 6 | . . . . . . . . . . . . 6 . . . . . . . . . . . . . . . . . Robots Built 3 | . . . . . . . . . . . . . . . . . . . . . . . . . . 3 . . . Authchips . | . . . . . . . . . . . . . . . . . . . . . . . . . . . . . . Time 62 | . . . . . . . . . . . . . . . . . . . . . . . . . . 62 . . . Total Robot Build Rating 21 | . . . . . . . . . . . . . . . . . . . . . . . . . . 21 . . . Part Schematics Acquired 11 | . . . . . . . . . . . . 11 . . . . . . . . . . . . . . . . . Parts Built . | . . . . . . . . . . . . . . . . . . . . . . . . . . . . . . Authchips . | . . . . . . . . . . . . . . . . . . . . . . . . . . . . . . Time . | . . . . . . . . . . . . . . . . . . . . . . . . . . . . . . Total Part Build Rating . | . . . . . . . . . . . . . . . . . . . . . . . . . . . . . . Parts Repaired . | . . . . . . . . . . . . . . . . . . . . . . . . . . . . . . Time . | . . . . . . . . . . . . . . . . . . . . . . . . . . . . . . Parts Recycled . | . . . . . . . . . . . . . . . . . . . . . . . . . . . . . . Recycled Matter . | . . . . . . . . . . . . . . . . . . . . . . . . . . . . . . Retrieved Matter . | . . . . . . . . . . . . . . . . . . . . . . . . . . . . . . Retrieved Components . | . . . . . . . . . . . . . . . . . . . . . . . . . . . . . . Parts Scanalyzed . | . . . . . . . . . . . . . . . . . . . . . . . . . . . . . . Part Schematics Acquired . | . . . . . . . . . . . . . . . . . . . . . . . . . . . . . . Parts Damaged . | . . . . . . . . . . . . . . . . . . . . . . . . . . . . . . Bothacking | -11 -10 -10 -10 -9 -8 -8 -8 -7 -6 -6 -6 -6 -5 -5 -5 -5 -5 -5 -4 -4 -4 -4 -4 -4 -3 -3 -2 -2 -1 ------------ Run | Yrd Mat Min Exi Min Mat Gar Mat Fac Fac Low Low Dat Pro Fac Ext Cet Arc Hub Fac Gar Fac Upp Upp War Pro Res Res Qua Acc Used RIF Installer . | . . . . . . . . . . . . . . . . . . . . . . . . . . . . . . Robots Hacked . | . . . . . . . . . . . . . . . . . . . . . . . . . . . . . . Non-combat . | . . . . . . . . . . . . . . . . . . . . . . . . . . . . . . Combat . | . . . . . . . . . . . . . . . . . . . . . . . . . . . . . . Robot Hacks Applied . | . . . . . . . . . . . . . . . . . . . . . . . . . . . . . . Relay Couplers Released 33 | . . . . . . 9 . . . . . . . . . . . . . 24 . . . . . . . . . Machine Destruction 30 | . . . . . . 9 . . . . . . . . . . . . . 21 . . . . . . . . . Programmers 3 | . . . . . . . . . . . . . . . . . . . . 3 . . . . . . . . . Fabnet Peak Effective % . | . . . . . . . . . . . . . . . . . . . . . . . . . . . . . . Robots Rewired 34 | . . . . . . . . . . . 2 . . . 16 . . . . 12 . 2 . . 2 . . . . Allies Hacked . | . . . . . . . . . . . . . . . . . . . . . . . . . . . . . . Hacks Repelled . | . . . . . . . . . . . . . . . . . . . . . . . . . . . . . . Allies | -11 -10 -10 -10 -9 -8 -8 -8 -7 -6 -6 -6 -6 -5 -5 -5 -5 -5 -5 -4 -4 -4 -4 -4 -4 -3 -3 -2 -2 -1 -------- Run | Yrd Mat Min Exi Min Mat Gar Mat Fac Fac Low Low Dat Pro Fac Ext Cet Arc Hub Fac Gar Fac Upp Upp War Pro Res Res Qua Acc Total Allies 47 | . . 2 . . . . 1 . . . 2 . . . 21 . . . . 14 . 2 . . 2 3 . . . Largest Group 16 | . . 2 . . . . 1 . . . 2 2 2 . 16 12 4 . . 12 8 3 1 . 2 3 3 . . Highest-Rated Group 504 | . . 41 . . . . 10 . . . 61 61 61 . 470 336 105 . . 504 394 144 49 . 94 144 144 . . Highest-Rated Ally 56 | . . 31 . . . . 10 . . . 32 32 32 . 39 39 31 . . 56 56 56 49 . 47 48 48 . . Initial Warlord ECA Mod 89 | . . . . . . . 4 3 2 2 2 2 1 1 . . . . . . 9 9 9 9 8 8 7 7 6 Warlord Squad Rendezvous 1 | . . . . . . . . . . . . . . 1 . . . . . . . . . . . . . . . Infantry 1 | . . . . . . . . . . . . . . 1 . . . . . . . . . . . . . . . Total Orders . | . . . . . . . . . . . . . . . . . . . . . . . . . . . . . . Ally Attacks 302 | . . 5 . . . . . . . . . . 40 . 86 50 . . . 81 3 20 2 . 5 10 . . . Total Damage 7426 | . . 83 . . . . . . . . . . 1001 . 1473 965 . . . 2659 279 807 . . 96 63 . . . Kills 55 | . . . . . . . . . . . . . 8 . 14 8 . . . 17 1 6 . . . 1 . . . Allies Corrupted . | . . . . . . . . . . . . . . . . . . . . . . . . . . . . . . Allies Melted 1 | . . . . . . . . . . . . . . . . . . . . . . . . 1 . . . . . Intel | -11 -10 -10 -10 -9 -8 -8 -8 -7 -6 -6 -6 -6 -5 -5 -5 -5 -5 -5 -4 -4 -4 -4 -4 -4 -3 -3 -2 -2 -1 ------- Run | Yrd Mat Min Exi Min Mat Gar Mat Fac Fac Low Low Dat Pro Fac Ext Cet Arc Hub Fac Gar Fac Upp Upp War Pro Res Res Qua Acc Active Infowar (turns) 21334 | 96 1393 833 . . . . 965 368 1037 901 800 142 1084 607 1672 689 109 418 1574 2015 112 944 973 684 1463 1968 95 392 . Optics 8792 | . . . . . . . 965 368 1037 901 800 142 1084 607 1672 689 109 418 . . . . . . . . . . . Terrain 3342 | . . . . . . . . . . . . . . . . . . . 184 2015 112 85 . . . 489 95 362 . Seismic 2322 | 96 1393 833 . . . . . . . . . . . . . . . . . . . . . . . . . . . Cloaking 1 | . . . . . . . . . . . . . . . . . . . . . . . . 1 . . . . . Jamming 13328 | . . . . . . . . . . . . . 46 210 1672 689 109 408 1574 2015 112 944 973 684 1463 1968 95 366 . Robot Analysis Total . | . . . . . . . . . . . . . . . . . . . . . . . . . . . . . . Derelict Logs Recovered 5 | . . 3 . . . . . . . . 1 . 1 . . . . . . . . . . . . . . . . Drone Launches 6 | . . . . . . . . . . . . . . . . . . . . . . . . . . 6 . . . Drone Recoveries 3 | . . . . . . . . . . . . . . . . . . . . . . . . . . 3 . . . Exploration | -11 -10 -10 -10 -9 -8 -8 -8 -7 -6 -6 -6 -6 -5 -5 -5 -5 -5 -5 -4 -4 -4 -4 -4 -4 -3 -3 -2 -2 -1 ------------- Run | Yrd Mat Min Exi Min Mat Gar Mat Fac Fac Low Low Dat Pro Fac Ext Cet Arc Hub Fac Gar Fac Upp Upp War Pro Res Res Qua Acc Turns Passed 26533 | 171 1393 912 347 223 1507 1208 1257 368 1037 901 800 142 1084 607 1672 689 109 552 1946 2015 112 944 973 791 1463 2222 95 414 579 Spaces Moved 16672 | 92 866 508 214 139 774 587 673 206 487 603 465 88 593 290 626 340 59 238 941 912 69 469 495 462 839 2392 237 926 1082 Core 140 | 4 . . . . . . . . . . . . . . . . . . . . . . . . . 65 . 2 69 Treads 10358 | 63 245 508 214 139 692 400 512 37 125 . 297 88 593 290 626 340 59 238 941 912 69 469 495 462 839 705 . . . Legs 161 | 25 135 . . . . . . . . . . . . . . . . . . . . . . . . . . . 1 Wheels 2417 | . 486 . . . 82 187 161 169 362 603 168 . . . . . . . . . . . . . . . . . 199 Hover 3 | . . . . . . . . . . . . . . . . . . . . . . . . . . . . . 3 Flight 3593 | . . . . . . . . . . . . . . . . . . . . . . . . . . 1622 237 924 810 Fastest Speed 19 | 50 95 160 160 160 95 110 95 135 135 135 135 162 160 160 160 160 160 160 160 160 160 160 160 160 160 35 28 28 19 Average Speed 126 | 145 128 160 160 160 153 156 146 155 170 135 152 162 161 160 160 160 160 160 160 160 160 160 160 160 160 72 28 28 38 Slowest Speed 250 | 190 160 160 160 160 160 232 232 240 240 150 162 162 163 160 160 240 160 160 160 240 160 160 160 160 160 250 106 50 250 Overloaded Moves . | . . . . . . . . . . . . . . . . . . . . . . . . . . . . . . Propulsion Burnouts . | . . . . . . . . . . . . . . . . . . . . . . . . . . . . . . Robots Hopped 14 | . . . . . . . . . . . . . . . . . . . . . . . . . . 4 . . 10 Potential Cave-ins 15 | . . . . . . . . . . . . . . . 7 . . . . . . . . 2 . 2 . 4 . Cave-ins Triggered 5 | . . . . . . . . . . . . . . . 1 . . . . 1 . . . . . 1 . 1 1 Exploration Rate (%) 54 | 6 99 92 60 48 50 55 50 8 17 74 63 74 63 11 67 90 71 28 23 98 2 75 65 64 92 59 9 78 35 Regions Visited 29 Branch Regions 16 Pre-discovered Areas 5 | . . 2 1 . . . . . . 1 . 1 . . . . . . . . . . . . . . . . . Known Exits Taken 7 | . . 1 . . 1 . . . 1 . . . . 1 . . . 1 1 . . . . . . 1 . . . Unknown Exits Taken 20 | 1 1 . 1 1 . . 1 1 . 1 1 1 1 . 1 1 1 . . . 1 1 1 1 1 . 1 1 . Scrap Searched 12 | . . 1 . . . . . . . 1 . . 2 . . . . . . . . 2 4 . 2 . . . . Spaces Dug 110 | . 4 2 . . 4 6 12 4 2 . . . . 4 4 . . 3 3 8 . . . . 7 17 1 19 10 Terrain Destroyed 647 | . 4 2 . . 31 56 54 4 2 . . . 7 12 23 8 . 185 35 47 . 17 13 2 28 62 23 22 10 Melee 82 | . 4 2 . . . 5 12 4 2 . . . . 4 1 . . 3 1 6 . . . . . 13 1 14 10 Projectile 228 | . . . . . 17 1 . . . . . . 7 8 22 8 . 5 11 41 . 17 13 2 28 40 . 8 . AOE 337 | . . . . . 14 50 42 . . . . . . . . . . 177 23 . . . . . . 9 22 . . Terrain Rammed . | . . . . . . . . . . . . . . . . . . . . . . . . . . . . . . Walls Destroyed . | . . . . . . . . . . . . . . . . . . . . . . . . . . . . . . Machines Disabled . | . . . . . . . . . . . . . . . . . . . . . . . . . . . . . . Actions | -11 -10 -10 -10 -9 -8 -8 -8 -7 -6 -6 -6 -6 -5 -5 -5 -5 -5 -5 -4 -4 -4 -4 -4 -4 -3 -3 -2 -2 -1 --------- Run | Yrd Mat Min Exi Min Mat Gar Mat Fac Fac Low Low Dat Pro Fac Ext Cet Arc Hub Fac Gar Fac Upp Upp War Pro Res Res Qua Acc Total 20283 | 114 1049 553 218 140 1000 728 825 241 658 647 506 88 665 391 1218 451 67 340 1291 1269 70 597 608 502 909 2676 253 1001 1208 Wait 1551 | 2 72 9 . 2 117 9 30 19 121 12 4 1 23 57 385 50 5 39 247 77 . 60 64 6 31 84 . 12 13 Move 16612 | 91 865 507 213 138 773 585 672 205 486 602 464 87 592 289 624 339 58 237 941 911 68 468 494 461 838 2383 236 923 1062 Hop 13 | . . . . . . . . . . . . . . . . . . . . . . . . . . 3 . . 10 Pick Up 171 | 6 20 2 1 . 13 4 18 3 9 4 . . 3 5 12 6 . 7 10 8 1 7 3 3 4 10 2 2 8 Fast Attach 103 | 7 . . . . . 1 1 . 2 . . . 2 1 . 2 . 5 . 1 . . . 5 . 33 1 8 34 Attach 87 | . . . 1 . 4 3 7 2 2 . 2 . 1 1 6 . . 3 5 8 . 4 4 2 1 12 3 2 14 Detach 38 | . . . . . . . . . . . . . 2 . . . . 1 1 2 . . . 7 . 3 2 3 17 Swap 251 | 3 18 6 2 . 26 18 21 4 8 4 7 . 14 19 19 13 1 7 22 4 1 5 5 4 3 13 3 . 1 Drop 194 | . 14 2 1 . 12 4 12 2 11 4 1 . 5 4 9 14 . 6 12 8 . 4 6 6 4 20 2 10 21 Fire 660 | 5 21 24 . . 53 60 40 . 17 14 17 . 20 10 37 27 . 17 47 84 . 28 32 6 22 70 1 8 . Melee 277 | . 39 2 . . . 34 24 6 2 . . . . 4 2 . 3 18 6 53 . 3 . . . 25 3 33 20 Ram 2 | . . . . . . . . . . . . . . . . . . . . . . . . . . . . . 2 Kick . | . . . . . . . . . . . . . . . . . . . . . . . . . . . . . . Crush 10 | . . 1 . . 2 . . . . . . . . 1 6 . . . . . . . . . . . . . . Escape Stasis 31 | . . . . . . 6 . . . . . . . . 1 . . . . . . . . . . 19 . . 5 Rewire 267 | . . . . . . 2 . . . . 10 . . . 117 . . . . 113 . 18 . . 6 . . . 1 Trap 16 | . . . . . . 2 . . . 7 1 . 3 . . . . . . . . . . 2 . 1 . . . Miscellaneous . | . . . . . . . . . . . . . . . . . . . . . . . . . . . . . . Route ------- -11/Scrapyard -10/Materials (discovered 6 exits: [*Mat x3] / *Min x2 / [*Sub]) -10/Mines (discovered 3 exits: [*Mat x2] / *Exi) -10/Exiles -9/Mines -8/Materials -8/Garrison (discovered 2 exits: *Mat x2) -8/Materials -7/Factory -6/Factory (discovered 2 exits: *Low x2) -6/Lower Caves -6/Lower Caves (discovered 2 exits: *Fac / *Dat) -6/Data Miner -5/Proximity Caves -5/Factory (discovered 5 exits: Fac / Upp x2 / *Ext x2) -5/Extension (discovered 2 exits: *Fac / *Cet) -5/Cetus (discovered 2 exits: *Fac / *Arc) -5/Archives -5/Hub_04(d) -4/Factory (discovered 2 exits: Res / Gar) -4/Garrison (discovered 3 exits: *Fac x3) -4/Factory -4/Upper Caves -4/Upper Caves (discovered 2 exits: *Res / *War) -4/Warlord -3/Proximity Caves -3/Research (discovered 2 exits: *Res / [*Arm]) -2/Research (discovered 2 exits: *Acc / [*Qua]) -2/Quarantine (discovered 3 exits: *Acc / [*Sec] / [*Frg]) -1/Access (discovered 1 exit: Com) History --------- Turn | Location | Event 18 | -11/Scrapyard | Discovered new exit (range 15) 172 | -11/Scrapyard | Entered Materials 220 | -10/Materials | Discovered new exit (range 10) 312 | -10/Materials | Build established: Mutant 342 | -10/Materials | Discovered new exit (range 15) 601 | -10/Materials | Discovered new exit (range 10) 1199 | -10/Materials | Discovered new exit (range 13) 1228 | -10/Materials | Discovered new exit (range 8) 1454 | -10/Materials | Discovered new exit (range 12) 1565 | -10/Materials | Entered Mines 1780 | -10/Mines | Learned location of Zion (-7) 1873 | -10/Mines | Learned location of Storage (-9) 1952 | -10/Mines | Discovered new exit (range 9) 2009 | -10/Mines | Discovered new exit (range 16) 2049 | -10/Mines | Found the Drone Emporium 2055 | -10/Mines | Found Prototype Device 2337 | -10/Mines | Identified exit to Exiles 2470 | -10/Mines | Deemed a non-threat by the Exiles lab entrance 2477 | -10/Mines | Entered Exiles 2516 | -10/Exiles | Met 8R-AWN 2543 | -10/Exiles | Met EX-HEX 2586 | -10/Exiles | Met EX-BIN 2610 | -10/Exiles | Aligned with FarCom system 2612 | -10/Exiles | Given EX-Vault access code 2650 | -10/Exiles | Opened EX-Vault 2658 | -10/Exiles | Identified Thief Drone Bay 2663 | -10/Exiles | Found Superbattery 2699 | -10/Exiles | Warned to stay clear of 0b10 Research branches 2749 | -10/Exiles | Met EX-DEC 2805 | -10/Exiles | Discovered new exit (range 14) 2824 | -10/Exiles | Left Exiles lab with Superbattery 2824 | -10/Exiles | Entered Mines 2957 | -9/Mines | Discovered new exit (range 11) 3047 | -9/Mines | Entered Materials 3047 | -8/Materials | Evolved 4 slots: Propulsion x2, Utility x2 4552 | -8/Materials | Identified exit to Garrison 4554 | -8/Materials | Entered Garrison 4738 | -8/Garrison | Triggered checkpoint 4808 | -8/Garrison | Garrison Relay disabled 5002 | -8/Garrison | Triggered checkpoint 5412 | -8/Garrison | Triggered checkpoint 5468 | -8/Garrison | Triggered checkpoint 5503 | -8/Garrison | Discovered new exit (range 6) 5609 | -8/Garrison | Discovered new exit (range 10) 5668 | -8/Garrison | Triggered checkpoint 5691 | -8/Garrison | Garrison Relay disabled 5734 | -8/Garrison | Attempted to access garrison exit controls, blocked by remote lockdown 5762 | -8/Garrison | Entered Materials 6082 | -8/Materials | Lost 3 parts (1p1n1u) 6524 | -8/Materials | Garrison activated, responded to threat 6562 | -8/Materials | First assault squad dispatched 6708 | -8/Materials | Discovered new exit (range 20) 7019 | -8/Materials | Entered Factory 7019 | -7/Factory | Evolved 2 slots: Utility x1, Weapon x1 7257 | -7/Factory | Discovered new exit (range 17) 7387 | -7/Factory | Entered another Factory area 7387 | -6/Factory | Evolved 2 slots: Utility x2 8123 | -6/Factory | Build established: Gunner 8383 | -6/Factory | Discovered new exit (range 8) 8392 | -6/Factory | Identified exit to Lower Caves 8424 | -6/Factory | Entered Lower Caves 8437 | -6/Lower Caves | Encountered a Warlord checkpoint 8457 | -6/Lower Caves | Met a Warlord Commander 8458 | -6/Lower Caves | Learned location of Warlord (-4) 8459 | -6/Lower Caves | Warlord Commander delivered Encrypted Comm Array 8464 | -6/Lower Caves | Found Encrypted Comm Array 9304 | -6/Lower Caves | Discovered new exit (range 10) 9325 | -6/Lower Caves | Entered another Lower Caves area 9441 | -6/Lower Caves | Learned location of 1 exit from Factory 9441 | -6/Lower Caves | Discovered new exit (range 5) 9567 | -6/Lower Caves | Attracted the attention of an 0b10 outpost 9630 | -6/Lower Caves | Destroyed 7 combat bots 9883 | -6/Lower Caves | Build established: Scavenger-Gunner 10023 | -6/Lower Caves | Discovered new exit (range 4) 10125 | -6/Lower Caves | Entered Data Miner 10125 | -6/Data Miner | Accompanied by 2 allies 10125 | -6/Data Miner | Discovered new exit (range 6) 10150 | -6/Data Miner | Met Data Miner 10192 | -6/Data Miner | Learned location of Section 7 (-2) 10192 | -6/Data Miner | Acquired the access code to Warlord's prototype stash 10219 | -6/Data Miner | Received God Mode back door access code from Data Miner 10267 | -6/Data Miner | Entered Proximity Caves 10267 | -5/Proximity Caves | Accompanied by 2 allies 10718 | -5/Proximity Caves | Unaware initiated a cargo recovery operation 10925 | -5/Proximity Caves | Found Prototype Device 10925 | -5/Proximity Caves | Identified Exp. Transmission Jammer 10982 | -5/Proximity Caves | Found Prototype Device 10982 | -5/Proximity Caves | Identified Exp. Shield Generator 11228 | -5/Proximity Caves | Build established: Tank 11285 | -5/Proximity Caves | Discovered new exit (range 12) 11324 | -5/Proximity Caves | Learned Factory stockpile data 11351 | -5/Proximity Caves | Entered Factory 11351 | -5/Factory | Evolved 2 slots: Power x1, Weapon x1 11352 | -5/Factory | Identified exit to Factory 11552 | -5/Factory | Identified exit to Upper Caves 11552 | -5/Factory | Identified exit to Extension 11648 | -5/Factory | Joined by Warlord Infantry squad 11958 | -5/Factory | Entered Extension 12290 | -5/Extension | Rescued a captive Derelict 12291 | -5/Extension | Rescued a captive Derelict 12404 | -5/Extension | Rescued a captive Derelict 12405 | -5/Extension | Rescued a captive Derelict 12455 | -5/Extension | Energy Cycler disabled 12456 | -5/Extension | Rescued a captive Derelict 12456 | -5/Extension | Rescued a captive Derelict 12456 | -5/Extension | Rescued a captive Derelict 12457 | -5/Extension | Rescued a captive Derelict 12458 | -5/Extension | Rescued a captive Derelict 12460 | -5/Extension | Rescued a captive Derelict 12486 | -5/Extension | Lost 3 allies 12783 | -5/Extension | Crushed by falling debris 12784 | -5/Extension | System corruption reached 10% 12814 | -5/Extension | Lost 3 parts (2u1w) 13111 | -5/Extension | Build established: Commander-Tank 13490 | -5/Extension | Discovered exit to Factory (range 10) 13491 | -5/Extension | Discovered new exit (range 6) 13630 | -5/Extension | Entered Cetus 13630 | -5/Cetus | Accompanied by 12 allies 13659 | -5/Cetus | Spotted Cetus Guard 13661 | -5/Cetus | Spotted Cetus Guard 13665 | -5/Cetus | Spotted Cetus Guard 13668 | -5/Cetus | Spotted Cetus Guard 13675 | -5/Cetus | Allies destroyed Cetus Guard 13676 | -5/Cetus | Allies destroyed Cetus Guard 13685 | -5/Cetus | Allies destroyed Cetus Guard 13687 | -5/Cetus | Allies destroyed Cetus Guard 13714 | -5/Cetus | Lost 6 allies 13871 | -5/Cetus | Discovered new exit (range 19) 13918 | -5/Cetus | Spotted Cetus Guard 13922 | -5/Cetus | Spotted Cetus Guard 13922 | -5/Cetus | Spotted Cetus Guard 13931 | -5/Cetus | Spotted Cetus Guard 13933 | -5/Cetus | Allies destroyed Cetus Guard 13937 | -5/Cetus | Allies destroyed Cetus Guard 13940 | -5/Cetus | Allies destroyed Cetus Guard 13945 | -5/Cetus | Destroyed Cetus Guard 13957 | -5/Cetus | Discovered exit to Factory (range 20) 13972 | -5/Cetus | Met Revision 17 14223 | -5/Cetus | Build established: Scavenger-Tank 14319 | -5/Cetus | Entered Archives 14319 | -5/Archives | Accompanied by 4 allies 14356 | -5/Archives | Met Zhirov 14359 | -5/Archives | Discovered new exit (range 20) 14362 | -5/Archives | Reinforcements dispatched to Archives 14364 | -5/Archives | Unable to access archive contents 14407 | -5/Archives | Reinforcements dispatched to Archives 14427 | -5/Archives | Zhirov detonated Archives 14428 | -5/Archives | Core integrity fell below 50% 14428 | -5/Archives | Entered Hub_04(d) 14458 | -5/Hub_04(d) | Lost 4 allies 14770 | -5/Hub_04(d) | Discovered exit to Factory (range 11) 14873 | -5/Hub_04(d) | Disrupted transfer network 14948 | -5/Hub_04(d) | Network Hub disabled 14980 | -5/Hub_04(d) | Entered Factory 14980 | -4/Factory | Evolved 2 slots: Utility x2 15186 | -4/Factory | Found Prototype Device 15187 | -4/Factory | Identified Exp. ECM Suite 16709 | -4/Factory | Found Prototype Processor 16709 | -4/Factory | Identified Exp. Terrain Scan Processor 16759 | -4/Factory | Discovered new exit (range 16) 16926 | -4/Factory | Identified exit to Garrison 16926 | -4/Factory | Entered Garrison 17010 | -4/Garrison | Build established: Scavenger-Assassin 17144 | -4/Garrison | Triggered checkpoint 17192 | -4/Garrison | Garrison Relay disabled 17201 | -4/Garrison | Crushed by falling debris 17566 | -4/Garrison | Triggered checkpoint 17579 | -4/Garrison | Triggered checkpoint 17736 | -4/Garrison | Garrison Relay disabled 17744 | -4/Garrison | Triggered checkpoint 17744 | -4/Garrison | Build established: Scavenger-Skirmisher 18036 | -4/Garrison | Discovered new exit (range 11) 18112 | -4/Garrison | Triggered checkpoint 18176 | -4/Garrison | Triggered checkpoint 18200 | -4/Garrison | Triggered checkpoint 18228 | -4/Garrison | Lost 3 allies 18369 | -4/Garrison | Discovered new exit (range 5) 18410 | -4/Garrison | Triggered checkpoint 18412 | -4/Garrison | Rescued a captive Derelict 18412 | -4/Garrison | Rescued a captive Derelict 18478 | -4/Garrison | Garrison Relay disabled 18547 | -4/Garrison | Build established: Scavenger-Assassin 18655 | -4/Garrison | Garrison Relay disabled 18694 | -4/Garrison | Triggered checkpoint 18727 | -4/Garrison | Discovered new exit (range 12) 18821 | -4/Garrison | Garrison Relay disabled 18941 | -4/Garrison | Entered Factory 18941 | -4/Factory | Accompanied by 8 allies 18991 | -4/Factory | Discovered new exit (range 15) 19012 | -4/Factory | Lost 5 allies 19053 | -4/Factory | Entered Upper Caves 19053 | -4/Upper Caves | Accompanied by 3 allies 19130 | -4/Upper Caves | Attracted the attention of an 0b10 outpost 19220 | -4/Upper Caves | Destroyed 7 combat bots 19352 | -4/Upper Caves | Build established: Scavenger-Tank 19605 | -4/Upper Caves | Attracted the attention of an 0b10 checkpoint 19732 | -4/Upper Caves | Encountered a Warlord checkpoint 19914 | -4/Upper Caves | Discovered new exit (range 16) 19997 | -4/Upper Caves | Entered another Upper Caves area 19997 | -4/Upper Caves | Accompanied by 1 ally 20210 | -4/Upper Caves | Discovered new exit (range 5) 20316 | -4/Upper Caves | Attracted the attention of an 0b10 checkpoint 20497 | -4/Upper Caves | Spotted B-86 Titan 20520 | -4/Upper Caves | Destroyed B-86 Titan 20545 | -4/Upper Caves | Lost 3 parts (1p2u) 20954 | -4/Upper Caves | Discovered new exit (range 10) 20970 | -4/Upper Caves | Entered Warlord 21049 | -4/Warlord | Discovered new exit (range 12) 21224 | -4/Warlord | Met Warlord 21249 | -4/Warlord | Warlord's base attacked by MAIN.C 21382 | -4/Warlord | Opened Warlord's prototype stash 21412 | -4/Warlord | Found Prototype Device 21412 | -4/Warlord | Identified Thermal Barrier 21415 | -4/Warlord | Found Prototype Processor 21415 | -4/Warlord | Identified Exp. Target Analyzer 21428 | -4/Warlord | Found Prototype Device 21428 | -4/Warlord | Identified Exp. Cloaking Device 21434 | -4/Warlord | Found Prototype Reactor 21434 | -4/Warlord | Identified Vortex Chain Reactor 21599 | -4/Warlord | Warlord forces counterattacked 21677 | -4/Warlord | Spotted Executioner 21708 | -4/Warlord | Build established: Tank 21737 | -4/Warlord | Lost 6 allies 21761 | -4/Warlord | Entered Proximity Caves 21779 | -3/Proximity Caves | Attracted the attention of an 0b10 outpost 21789 | -3/Proximity Caves | Lost 3 allies 22387 | -3/Proximity Caves | Build established: Scavenger-Tank 23007 | -3/Proximity Caves | Encountered a Derelict sapper outpost 23205 | -3/Proximity Caves | Discovered new exit (range 10) 23224 | -3/Proximity Caves | Entered Research 23224 | -3/Research | Evolved 2 slots: Propulsion x2 23283 | -3/Research | Build established: Scavenger-Gunner 23424 | -3/Research | Revision forces began assault on 0b10 23447 | -3/Research | Met up with Revision 17++ 23573 | -3/Research | Spotted B-86 Titan 23924 | -3/Research | Research terminal network offline 24056 | -3/Research | Spotted Striker 24101 | -3/Research | Lost 3 allies 24127 | -3/Research | Lost 4 parts (2n2u) 24351 | -3/Research | Build established: Scavenger-Tank 24642 | -3/Research | Spotted Striker 24644 | -3/Research | Spotted Striker 24661 | -3/Research | Spotted Striker 24662 | -3/Research | Spotted Striker 24679 | -3/Research | Allies destroyed Striker 24680 | -3/Research | Core integrity fell below 50% 24701 | -3/Research | Lost 8 parts (1p4n2u1w) 24710 | -3/Research | Lost 3 allies 24891 | -3/Research | Spotted Striker 24943 | -3/Research | Build established: Mutant 24996 | -3/Research | Found Fusion Bomb Launcher 25120 | -3/Research | Crushed by falling debris 25151 | -3/Research | Lost 4 parts (1p3u) 25172 | -3/Research | Found Prototype Hackware 25172 | -3/Research | Identified Exp. System Shield 25186 | -3/Research | Core integrity fell below 20% 25226 | -3/Research | Found Exp. System Shield 25314 | -3/Research | Discovered new exit (range 7) 25333 | -3/Research | Discovered new exit (range 16) 25434 | -3/Research | Fabricated L-61 Swordsman? 25446 | -3/Research | Identified exit to Research 25446 | -3/Research | Entered another Research area 25446 | -2/Research | Accompanied by 3 allies 25446 | -2/Research | Warlord forces began assault on 0b10 25446 | -2/Research | Evolved 2 slots: Propulsion x2 25471 | -2/Research | Distinguished unit "Shockpunchers" dispatched to help 25490 | -2/Research | Found Exp. Terrain Scan Processor 25515 | -2/Research | Discovered new exit (range 22) 25522 | -2/Research | Discovered new exit (range 16) 25541 | -2/Research | Entered Quarantine 25542 | -2/Quarantine | Maximum security lockdown engaged 25595 | -2/Quarantine | Found Alien Impact Weapon 25595 | -2/Quarantine | Identified Core Stripper 25709 | -2/Quarantine | Met incapacitated Sigix Warrior 25709 | -2/Quarantine | Lockdown squad dispatched 25721 | -2/Quarantine | Found Sigix Containment Pod 25742 | -2/Quarantine | Build established: Ninja 25746 | -2/Quarantine | Spotted Lightning 25751 | -2/Quarantine | Spotted Lightning 25752 | -2/Quarantine | Spotted Lightning 25763 | -2/Quarantine | Found Alien Slashing Weapon 25763 | -2/Quarantine | Identified Sigix Broadsword 25799 | -2/Quarantine | Spotted Fortress 25821 | -2/Quarantine | Discovered new exit (range 6) 25821 | -2/Quarantine | Discovered new exit (range 7) 25861 | -2/Quarantine | Crushed by falling debris 25861 | -2/Quarantine | System corruption reached 10% 25892 | -2/Quarantine | Lost 7 parts (2n5u) 25941 | -2/Quarantine | Discovered new exit (range 11) 25942 | -2/Quarantine | Spotted Striker 25943 | -2/Quarantine | Cryocooling Duct disabled 25947 | -2/Quarantine | Spotted Striker 25947 | -2/Quarantine | Spotted Striker 25954 | -2/Quarantine | Core integrity fell below 50% 25955 | -2/Quarantine | Entered Access 25955 | -1/Access | Evolved 2 slots: Propulsion x1, Utility x1 25984 | -1/Access | Lost 5 parts (4n1w) 26385 | -1/Access | Identified exit to Command 26417 | -1/Access | Spotted B-99 Colossus 26462 | -1/Access | Lost 7 parts (5n2u) 26490 | -1/Access | Spotted B-99 Colossus 26515 | -1/Access | Spotted B-99 Colossus 26525 | -1/Access | Crushed by falling debris 26525 | -1/Access | Core integrity fell below 50% 26532 | -1/Access | Core integrity fell below 20% 26534 | -1/Access | Destroyed by H-88 Terminator with KE Penetrator Last Messages --------------- 26529_ Adv. Corruption Screen severed. 26529_ Knocked back. 26529_ Penetrated by Slug. 26529_ Slug penetrates H-88 Terminator. 26529_ Slug penetrates Wall. 26529_ Penetrated by Slug. 26529_ Slug penetrates H-88 Terminator. 26529_ H-88 Terminator suffers critical hit (Destroy). 26529_ Slug penetrates H-88 Terminator. 26530_ Acquired 4 matter. 26531_ Penetrated by Slug. 26531_ P-80 Master resets C-57 Dissector, system corruption cleaned. 26532_ Penetrated by Slug. 26532_ Slug penetrates Wall. 26533_ Slammed into C-57 Dissector. 26533_ Jamming Amplifier severed. 26534_ Penetrated by Slug. 26534_ Slammed into C-57 Dissector. 26534_ Penetrated by Slug. [Achievement: 30k Club] Map ----- +----------------------------------------------------+ | ???????????????????????????????########?#####????? | | ???????????????????????????????# ? = #????? | | ???????????????????????????????# #????? | | ???????????????????????????????# #????? | | ???????????????????????????????# " #????? | | ????????????????????????######?# """ = #????? | | ????????????????????????# #?# """ #????? | | ????????????????????????# #?# " #????? | | ????????????????????????# #?# #????? | | ?????????????????????????# ### ! #????? | | ????????????????????????## B " = #????? | | ????????????????????????#" %### #????? | | ????????????????????????##= ### #????? | | ?????????????????????>??##]= ;"##+###########????? | | ????????????????????????""% #???????????? | | ?????????????????????????" H" #???????????? | | ?????????????????????????" " #???????????? | | ?????????????????????????# Y#### #???????????? | | ?????????###?????????????# ##??# #???????????? | | ????????? #?????????????#ph ;#??# #???????????? | | ?????????# #?????????????# ##??# #???????????? | | ?????????# #????????????## #???# #???????????? | | ?????????# #????????????# #???# #???????????? | | ?????????#p#????????????# h #??## ##??????????? | | ?????????# #???????????##cc #??# #??????????? | | ?????????# #??????######;@c###??# #??????????? | | ?????????#C#??????# ] c;###### % #??????????? | | ?????????# #??????#= ! ; #??????????? | | ?????????# #??????# [ ; ##### #??????????? | | ?????????# #??????#######;; #???###+###??????????? | | ???????### ###?????????#;#; ;##??????????????????? | | ?####### #??????????# BB#??????????????????? | | T ############C BB#??????????????????? | | "" +??????????????????? | | ###### ##### #??????????????????? | | ######## #????# #???# #??????????????????? | | ???????#######????# #######k###??????????????????? | | ??????????????????# # #??????????????????? | | ??????????????????# # #???################ | | ?????????????????? # #???# =# | | ??????????????????### #???# # | | ????????????????????# #???# # | | ????????????????????# #???# # | | ????????????????????#! #???# # | | ????????????????????# #???# # | | ????????????????????######"#########+#####+####### | | ?????????????????????????## # | | ??????????????????????????# # | | ??????????????????????????# """# | | ??????????????????????????# T"# | +----------------------------------------------------+ Best States ------------- Heat Dissipation 114 Coolant Potential 100 Energy Generation 55 Energy Capacity 2250 Matter Stores 300 Matter Capacity 800 Sight Range 20 Terrain Scan Range 24 Terrain Scan Density 1010 Jamming Range 22 Additional Mass Support 9 EM Shielding 4 Corruption Block 20 Armor Coverage 450 Resistance: TH 25 Point Defense Rating 80 Weapon Cycling 15 Evasion (%) 76 Targeting Accuracy 16 Melee Accuracy 8 Target Analysis 10 Armor Integrity Analysis 40 Recoil Reduction 6 Particle Charging 20 Defensive Hacking 32 Trap Extractor Capacity 6 Item Schematics ----------------- Combat Drone Bay | -6/Data Miner | Free Lgt. Regenerative Plating | -6/Data Miner | Free Cld. Nuclear Pulse Thruster | -6/Data Miner | Free Prc. Energy Filter | -6/Data Miner | Free Enh. Coil Gun | -6/Data Miner | Free Imp. Heavy Treads | -6/Data Miner | Free Nanoactuators | -6/Data Miner | Free Hyp. Mass Driver | -6/Data Miner | Free Imp. Transmission Jammer | -6/Data Miner | Free Adv. Point Defense System | -6/Data Miner | Free Com. HERF Cannon | -6/Data Miner | Free Robot Schematics ------------------ D-63 Destroyer | -6/Data Miner | Free B-48 Gladiator | -6/Data Miner | Free L-41 Fighter | -6/Data Miner | Free M-36 Artificer | -6/Data Miner | Free Y-54 Guardian | -6/Data Miner | Free G-67 Veteran | -6/Data Miner | Free Fabricated ------------ L-61 Swordsman | x3 | -3/Research | Preloaded Repaired ---------- Nothing Alien Tech Used ----------------- Core Stripper Sigix Broadsword Achievements -------------- 30k Club Revising The Future Revolutionary Research Challenges ------------ None Game ------ Seed KineticCarbideGuard Manual? 0 Play Time 03:53:27 Cumulative 131.7 hours Start 2025.06.25 @ 18:08:17 End 2025.06.25 @ 22:06:43 Sessions 1 Manual Loads 0 Difficulty Rogue Special Mode None Game No. 128 Rogue 128 Adventurer 0 Explorer 0 Win Type - Total 1 Types 1/0/0/0/0/0/0/0/0/0 Lore% 67 Gallery% 61 Achievement% 51 Wizard Run 0 Options --------- Layout 0 ASCII 0 Keyboard 1 Movement Numpad Keybinds 0 Fullscreen 1 Font 24/Terminus Map View 76x50 Zoom Use 0% Tactical HUD 1 Map Filters NONE Filters NONE Steam 1 RUN: 32485370-482d-4606-bb00-cd8ac1d463be